[Event "Early-Titled-Tuesday-Blitz-March-26-2024"]
[Site "Chess.com"]
[Date "2024.03.26"]
[Round "5"]
[White "Donskov_AN"]
[Black "Kostya0705"]
[Result "1/2-1/2"]
[WhiteElo "2367"]
[BlackElo "2566"]
[TimeControl "180+1"]
[EndTime "8:57:17 PDT"]
[Termination "Game drawn by agreement"]

1. e4 {[%clk 0:03:00.1]} 1... c5 {[%clk 0:02:58.4]} 2. Nf3 {[%clk 0:03:00.3]}
2... e6 {[%clk 0:02:58.1]} 3. d4 {[%clk 0:03:00.8]} 3... cxd4 {[%clk 0:02:58.3]}
4. Nxd4 {[%clk 0:03:01.7]} 4... Nc6 {[%clk 0:02:58.3]} 5. c4 {[%clk 0:03:01.2]}
5... Nf6 {[%clk 0:02:57.1]} 6. Nc3 {[%clk 0:02:58.2]} 6... Bb4 {[%clk
0:02:54.4]} 7. Qd3 {[%clk 0:02:57.5]} 7... Qa5 {[%clk 0:02:41.2]} 8. Bd2 {[%clk
0:02:51.7]} 8... Qb6 {[%clk 0:02:39.7]} 9. Nb3 {[%clk 0:02:43.2]} 9... O-O
{[%clk 0:02:36.4]} 10. Be2 {[%clk 0:02:39.3]} 10... a6 {[%clk 0:02:28.4]} 11.
O-O {[%clk 0:02:38.4]} 11... Qc7 {[%clk 0:02:25.3]} 12. Rad1 {[%clk 0:02:36.3]}
12... b6 {[%clk 0:02:24.8]} 13. Bg5 {[%clk 0:02:15.3]} 13... Be7 {[%clk
0:02:21.4]} 14. Nd2 {[%clk 0:02:10.4]} 14... h6 {[%clk 0:02:19.4]} 15. Bh4
{[%clk 0:02:05.6]} 15... Bb7 {[%clk 0:02:15.1]} 16. b3 {[%clk 0:02:03.4]} 16...
Rfd8 {[%clk 0:02:11.1]} 17. Rfe1 {[%clk 0:02:02.4]} 17... d5 {[%clk 0:01:58.5]}
18. exd5 {[%clk 0:01:56.6]} 18... Nb4 {[%clk 0:01:57.8]} 19. Qh3 {[%clk
0:01:52.1]} 19... exd5 {[%clk 0:01:55.9]} 20. Bg3 {[%clk 0:01:51.1]} 20... Qc5
{[%clk 0:01:45.5]} 21. Na4 {[%clk 0:01:48.2]} 21... Qc6 {[%clk 0:01:37.8]} 22.
Bf3 {[%clk 0:01:44.8]} 22... Re8 {[%clk 0:01:30.6]} 23. cxd5 {[%clk 0:01:38.4]}
23... Nfxd5 {[%clk 0:01:28.7]} 24. Nc4 {[%clk 0:01:29.4]} 24... b5 {[%clk
0:01:17.7]} 25. Ne5 {[%clk 0:01:29.5]} 25... Qf6 {[%clk 0:01:12.6]} 26. Ng4
{[%clk 0:00:57.9]} 26... Qg5 {[%clk 0:01:09.5]} 27. Re5 {[%clk 0:00:48.2]} 27...
f5 {[%clk 0:00:50.8]} 28. Rxf5 {[%clk 0:00:44.7]} 28... Qg6 {[%clk 0:00:48.3]}
29. Ne5 {[%clk 0:00:37.4]} 29... Qe6 {[%clk 0:00:38]} 30. Bg4 {[%clk 0:00:23.8]}
30... Nf6 {[%clk 0:00:35.5]} 31. Rxf6 {[%clk 0:00:13.9]} 31... Qxf6 {[%clk
0:00:34.2]} 32. Be6+ {[%clk 0:00:14.1]} 32... Kh7 {[%clk 0:00:29]} 33. Bf5+
{[%clk 0:00:12.4]} 33... Kh8 {[%clk 0:00:26.2]} 34. Ng6+ {[%clk 0:00:11.9]}
34... Kg8 {[%clk 0:00:26.8]} 35. Nb6 {[%clk 0:00:06.4]} 35... Rad8 {[%clk
0:00:19.5]} 36. Rf1 {[%clk 0:00:07]} 36... Bc5 {[%clk 0:00:18]} 37. Nd7 {[%clk
0:00:06.7]} 37... Qc6 {[%clk 0:00:15]} 38. Nde5 {[%clk 0:00:04.9]} 38... Qd5
{[%clk 0:00:13.9]} 39. Bg4 {[%clk 0:00:04.3]} 39... Ba8 {[%clk 0:00:09.1]} 40.
Qh5 {[%clk 0:00:03.6]} 40... Nd3 {[%clk 0:00:07.9]} 41. Bf3 {[%clk 0:00:03.4]}
41... Qd4 {[%clk 0:00:06.1]} 42. Qf5 {[%clk 0:00:02.1]} 42... Bxf3 {[%clk
0:00:02.8]} 43. gxf3 {[%clk 0:00:02.9]} 43... Rxe5 {[%clk 0:00:01.9]} 44. Nxe5
{[%clk 0:00:03.8]} 44... Nxe5 {[%clk 0:00:01.9]} 45. Bxe5 {[%clk 0:00:04.2]}
45... Qd7 {[%clk 0:00:02.5]} 46. Qe4 {[%clk 0:00:04.2]} 46... Qe7 {[%clk
0:00:02.6]} 47. f4 {[%clk 0:00:04.7]} 47... Re8 {[%clk 0:00:03.1]} 48. Kh1
{[%clk 0:00:05.2]} 48... Qe6 {[%clk 0:00:03.7]} 49. Rg1 {[%clk 0:00:05.7]} 49...
Re7 {[%clk 0:00:03.9]} 50. Qg2 {[%clk 0:00:04.9]} 50... Qd7 {[%clk 0:00:03.5]}
51. Qg4 {[%clk 0:00:04.2]} 51... Qxg4 {[%clk 0:00:03.1]} 52. Rxg4 {[%clk
0:00:05.1]} 52... Rd7 {[%clk 0:00:04]} 53. Kg2 {[%clk 0:00:05.3]} 53... Kf8
{[%clk 0:00:04.6]} 54. Kf3 {[%clk 0:00:04.9]} 54... Bb6 {[%clk 0:00:03.8]} 55.
Ke4 {[%clk 0:00:05.1]} 55... Bxf2 {[%clk 0:00:03.4]} 56. f5 {[%clk 0:00:05.6]}
56... Bc5 {[%clk 0:00:03.7]} 57. f6 {[%clk 0:00:05.7]} 57... gxf6 {[%clk
0:00:04.6]} 58. Bxf6 {[%clk 0:00:06.1]} 58... Kf7 {[%clk 0:00:05.1]} 59. Kf5
{[%clk 0:00:06.3]} 59... Rd5+ {[%clk 0:00:04.9]} 60. Be5 {[%clk 0:00:06.7]}
60... Bd6 {[%clk 0:00:05.5]} 61. Re4 {[%clk 0:00:06.2]} 61... Rc5 {[%clk
0:00:04.1]} 62. h4 {[%clk 0:00:05.7]} 62... Bc7 {[%clk 0:00:03]} 63. h5 {[%clk
0:00:05.8]} 63... a5 {[%clk 0:00:03]} 64. a3 {[%clk 0:00:05.8]} 64... a4 {[%clk
0:00:02]} 65. bxa4 {[%clk 0:00:06]} 65... bxa4 {[%clk 0:00:02.9]} 66. Re2 {[%clk
0:00:04.7]} 66... Rb5 {[%clk 0:00:02.6]} 67. Re3 {[%clk 0:00:04.6]} 67... Ke7
{[%clk 0:00:02.8]} 68. Re4 {[%clk 0:00:03.6]} 68... Kf7 {[%clk 0:00:02.9]} 69.
Re3 {[%clk 0:00:03.9]} 69... Bb6 {[%clk 0:00:02.5]} 70. Re1 {[%clk 0:00:04]}
70... Rb3 {[%clk 0:00:02.8]} 71. Rf1 {[%clk 0:00:03.2]} 71... Rxa3 {[%clk
0:00:02.9]} 72. Ke4+ {[%clk 0:00:03.9]} 72... Ke7 {[%clk 0:00:03.3]} 73. Bf6+
{[%clk 0:00:03.2]} 73... Ke6 {[%clk 0:00:03.5]} 74. Bg7 {[%clk 0:00:02.7]} 74...
Bd8 {[%clk 0:00:03.9]} 75. Bxh6 {[%clk 0:00:03]} 75... Rh3 {[%clk 0:00:04.3]}
76. Be3 {[%clk 0:00:02.4]} 76... a3 {[%clk 0:00:04.2]} 77. h6 {[%clk 0:00:02.5]}
77... Be7 {[%clk 0:00:04.7]} 78. Rb1 {[%clk 0:00:02.3]} 78... Bf6 {[%clk
0:00:04]} 79. Rb6+ {[%clk 0:00:02.1]} 79... Kf7 {[%clk 0:00:04.7]} 80. h7 {[%clk
0:00:02.2]} 80... Rxh7 {[%clk 0:00:03.8]} 81. Ra6 {[%clk 0:00:01.4]} 81... Bb2
{[%clk 0:00:03.4]} 82. Ra7+ {[%clk 0:00:01.6]} 82... Kg6 {[%clk 0:00:03.4]} 83.
Ra6+ {[%clk 0:00:02.5]} 83... Kh5 {[%clk 0:00:03.3]} 84. Kd3 {[%clk 0:00:03.4]}
84... Rc7 {[%clk 0:00:02.9]} 85. Bd4 {[%clk 0:00:03.2]} 85... Kg4 {[%clk
0:00:03.4]} 86. Bxb2 {[%clk 0:00:02.8]} 86... axb2 {[%clk 0:00:04.3]} 87. Rb6
{[%clk 0:00:03.3]} 87... Rd7+ {[%clk 0:00:04.1]} 88. Kc2 {[%clk 0:00:03.7]}
88... Kf3 {[%clk 0:00:05]} 89. Rxb2 {[%clk 0:00:03.6]} 89... Ke2 {[%clk
0:00:05.9]} 90. Rb3 {[%clk 0:00:04.5]} 90... Rc7+ {[%clk 0:00:05.7]} 91. Kb2
{[%clk 0:00:04.9]} 91... Ra7 {[%clk 0:00:06.6]} 92. Ra3 {[%clk 0:00:05]} 92...
Rc7 {[%clk 0:00:06.4]} 93. Rb3 {[%clk 0:00:05.9]} 93... Rh7 {[%clk 0:00:06.9]}
94. Rc3 {[%clk 0:00:06.5]} 94... Kd2 {[%clk 0:00:07.8]} 95. Rc2+ {[%clk
0:00:06.9]} 95... Kd3 {[%clk 0:00:08.5]} 96. Rc3+ {[%clk 0:00:07.4]} 96... Kd4
{[%clk 0:00:09.4]} 97. Rg3 {[%clk 0:00:07.7]} 97... Rh2+ {[%clk 0:00:09.2]} 98.
Kb3 {[%clk 0:00:07.7]} 98... Rh4 {[%clk 0:00:10.1]} 99. Kb2 {[%clk 0:00:08.1]}
99... Kc4 {[%clk 0:00:10.2]} 100. Rc3+ {[%clk 0:00:08.2]} 100... Kb4 {[%clk
0:00:10.8]} 101. Rb3+ {[%clk 0:00:08.9]} 101... Kc5 {[%clk 0:00:11.3]} 102. Rc3+
{[%clk 0:00:09.4]} 102... Kd4 {[%clk 0:00:12.1]} 103. Rb3 {[%clk 0:00:09.6]}
103... Rh2+ {[%clk 0:00:12.5]} 104. Ka3 {[%clk 0:00:09.9]} 104... Kc4 {[%clk
0:00:12.9]} 105. Rb4+ {[%clk 0:00:10]} 105... Kc5 {[%clk 0:00:13.6]} 106. Rb3
{[%clk 0:00:09.9]} 106... Rh1 {[%clk 0:00:14.1]} 107. Rc3+ {[%clk 0:00:09.9]}
107... Kb5 {[%clk 0:00:14.7]} 108. Rb3+ {[%clk 0:00:10.4]} 108... Kc4 {[%clk
0:00:15.4]} 109. Rb4+ {[%clk 0:00:10.5]} 109... Kc5 {[%clk 0:00:16]} 110. Rb3
{[%clk 0:00:10.7]} 110... Rh2 {[%clk 0:00:16.8]} 111. Rc3+ {[%clk 0:00:10.7]}
111... Kb5 {[%clk 0:00:17.5]} 112. Rb3+ {[%clk 0:00:11]} 112... Ka5 {[%clk
0:00:18.2]} 113. Rc3 {[%clk 0:00:11.6]} 1/2-1/2

[Event "Early-Titled-Tuesday-Blitz-March-26-2024"]
[Site "Chess.com"]
[Date "2024.03.26"]
[Round "6"]
[White "Knightmare1014"]
[Black "Incognizance"]
[Result "1-0"]
[WhiteElo "2313"]
[BlackElo "1907"]
[TimeControl "180+1"]
[EndTime "8:59:56 PDT"]
[Termination "Knightmare1014 won by resignation"]

1. e4 {[%clk 0:03:00.9]} 1... c5 {[%clk 0:02:58.4]} 2. Nf3 {[%clk 0:03:00.9]}
2... Nc6 {[%clk 0:02:58.5]} 3. d4 {[%clk 0:03:01.2]} 3... cxd4 {[%clk
0:02:58.7]} 4. Nxd4 {[%clk 0:03:02.1]} 4... e5 {[%clk 0:02:59.4]} 5. Nb5 {[%clk
0:03:01.8]} 5... d6 {[%clk 0:02:59.9]} 6. N1c3 {[%clk 0:03:01.2]} 6... a6 {[%clk
0:03:00.1]} 7. Na3 {[%clk 0:03:01.5]} 7... b5 {[%clk 0:03:00.6]} 8. Nd5 {[%clk
0:03:01.6]} 8... Nge7 {[%clk 0:03:01.4]} 9. c3 {[%clk 0:02:53.8]} 9... Nxd5
{[%clk 0:03:00.8]} 10. Qxd5 {[%clk 0:02:53.9]} 10... Qc7 {[%clk 0:02:52.5]} 11.
Nc2 {[%clk 0:02:51]} 11... Be6 {[%clk 0:02:52.4]} 12. Qd1 {[%clk 0:02:49.5]}
12... g6 {[%clk 0:02:49.1]} 13. Be3 {[%clk 0:02:49.4]} 13... Bg7 {[%clk
0:02:48.5]} 14. Be2 {[%clk 0:02:44.2]} 14... O-O {[%clk 0:02:48.4]} 15. O-O
{[%clk 0:02:39.9]} 15... f5 {[%clk 0:02:45.8]} 16. f3 {[%clk 0:02:35.3]} 16...
fxe4 {[%clk 0:02:39.4]} 17. fxe4 {[%clk 0:02:35.3]} 17... Rxf1+ {[%clk 0:02:40]}
18. Bxf1 {[%clk 0:02:33.4]} 18... Na5 {[%clk 0:02:28.1]} 19. Nb4 {[%clk
0:02:29.2]} 19... Nc4 {[%clk 0:02:25.7]} 20. Nd5 {[%clk 0:02:20.1]} 20... Bxd5
{[%clk 0:02:23.4]} 21. Qxd5+ {[%clk 0:02:19.7]} 21... Kh8 {[%clk 0:02:21.9]} 22.
Qxa8+ {[%clk 0:02:19.5]} 1-0

[Event "Early-Titled-Tuesday-Blitz-March-26-2024"]
[Site "Chess.com"]
[Date "2024.03.26"]
[Round "6"]
[White "Ticoluis"]
[Black "kai_nov"]
[Result "1-0"]
[WhiteElo "2508"]
[BlackElo "2338"]
[TimeControl "180+1"]
[EndTime "9:01:00 PDT"]
[Termination "Ticoluis won by checkmate"]

1. e4 {[%clk 0:02:23]} 1... c5 {[%clk 0:02:59.2]} 2. Nf3 {[%clk 0:02:22.7]} 2...
Nc6 {[%clk 0:03:00.1]} 3. Bb5 {[%clk 0:02:22.4]} 3... g6 {[%clk 0:02:58.6]} 4.
O-O {[%clk 0:02:21.9]} 4... Bg7 {[%clk 0:02:58.7]} 5. Re1 {[%clk 0:02:22]} 5...
d6 {[%clk 0:02:58.2]} 6. Bxc6+ {[%clk 0:02:21.4]} 6... bxc6 {[%clk 0:02:58]} 7.
c3 {[%clk 0:02:22]} 7... e5 {[%clk 0:02:57.9]} 8. d4 {[%clk 0:02:22.2]} 8...
cxd4 {[%clk 0:02:56.3]} 9. cxd4 {[%clk 0:02:22.8]} 9... exd4 {[%clk 0:02:54.4]}
10. Nxd4 {[%clk 0:02:21.9]} 10... Ne7 {[%clk 0:02:53.7]} 11. Nc3 {[%clk
0:02:14.7]} 11... O-O {[%clk 0:02:53]} 12. Bg5 {[%clk 0:02:11.4]} 12... f6
{[%clk 0:02:41.7]} 13. Bf4 {[%clk 0:02:10.9]} 13... Bd7 {[%clk 0:02:34.5]} 14.
Bxd6 {[%clk 0:02:09.3]} 14... Re8 {[%clk 0:02:32.1]} 15. Qb3+ {[%clk 0:02:05.4]}
15... Kh8 {[%clk 0:02:30.7]} 16. Bg3 {[%clk 0:01:48.6]} 16... Nc8 {[%clk
0:02:29.6]} 17. Rad1 {[%clk 0:01:44.4]} 17... Qb6 {[%clk 0:02:24.8]} 18. Qf7
{[%clk 0:01:38.7]} 18... Ne7 {[%clk 0:02:20.5]} 19. Nb3 {[%clk 0:01:20.7]} 19...
Rad8 {[%clk 0:02:18.2]} 20. Rxd7 {[%clk 0:01:16.3]} 20... Ng8 {[%clk 0:02:13.3]}
21. Qxg7# {[%clk 0:01:13.7]} 1-0

[Event "Early-Titled-Tuesday-Blitz-March-26-2024"]
[Site "Chess.com"]
[Date "2024.03.26"]
[Round "6"]
[White "MatthewG-p4p"]
[Black "Irina_Mikhaylova"]
[Result "1-0"]
[WhiteElo "2868"]
[BlackElo "2340"]
[TimeControl "180+1"]
[EndTime "9:01:08 PDT"]
[Termination "MatthewG-p4p won by resignation"]

1. f4 {[%clk 0:03:00.2]} 1... d5 {[%clk 0:02:59.5]} 2. Nf3 {[%clk 0:03:00.4]}
2... Nf6 {[%clk 0:02:59.9]} 3. g3 {[%clk 0:03:00.9]} 3... g6 {[%clk 0:03:00.1]}
4. Bg2 {[%clk 0:03:01.6]} 4... Bg7 {[%clk 0:03:00.6]} 5. O-O {[%clk 0:03:01.8]}
5... O-O {[%clk 0:03:01.2]} 6. d3 {[%clk 0:03:02.7]} 6... c5 {[%clk 0:02:51.3]}
7. Nc3 {[%clk 0:02:58.6]} 7... d4 {[%clk 0:02:48.4]} 8. Na4 {[%clk 0:02:58]}
8... Nbd7 {[%clk 0:02:30.8]} 9. c4 {[%clk 0:02:57.7]} 9... Qc7 {[%clk
0:02:28.8]} 10. a3 {[%clk 0:02:56.9]} 10... Rb8 {[%clk 0:02:26.4]} 11. b4 {[%clk
0:02:55.7]} 11... b6 {[%clk 0:02:26.8]} 12. Rb1 {[%clk 0:02:53.9]} 12... Bb7
{[%clk 0:02:26.2]} 13. e4 {[%clk 0:02:53.9]} 13... dxe3 {[%clk 0:02:19.5]} 14.
Bxe3 {[%clk 0:02:54]} 14... e5 {[%clk 0:02:03.7]} 15. Nc3 {[%clk 0:02:18.5]}
15... Ng4 {[%clk 0:01:53.4]} 16. Bd2 {[%clk 0:02:07.9]} 16... Rfe8 {[%clk
0:01:44.2]} 17. Nb5 {[%clk 0:02:03.5]} 17... Qc6 {[%clk 0:01:23.1]} 18. Nh4
{[%clk 0:02:01.6]} 18... Qf6 {[%clk 0:01:22.8]} 19. Qxg4 {[%clk 0:01:58.7]} 1-0

[Event "Early-Titled-Tuesday-Blitz-March-26-2024"]
[Site "Chess.com"]
[Date "2024.03.26"]
[Round "6"]
[White "chucksterf10"]
[Black "NastyaHn"]
[Result "1-0"]
[WhiteElo "2598"]
[BlackElo "2450"]
[TimeControl "180+1"]
[EndTime "9:01:12 PDT"]
[Termination "chucksterf10 won by resignation"]

1. Nc3 {[%clk 0:02:56.7]} 1... e6 {[%clk 0:02:57.2]} 2. d4 {[%clk 0:02:55.6]}
2... d5 {[%clk 0:02:56.9]} 3. Bf4 {[%clk 0:02:55.8]} 3... Nf6 {[%clk 0:02:56.2]}
4. e3 {[%clk 0:02:54.9]} 4... Bb4 {[%clk 0:02:55.4]} 5. Ne2 {[%clk 0:02:54.8]}
5... c5 {[%clk 0:02:55.1]} 6. a3 {[%clk 0:02:55]} 6... Bxc3+ {[%clk 0:02:53.7]}
7. Nxc3 {[%clk 0:02:55.4]} 7... a6 {[%clk 0:02:50.1]} 8. dxc5 {[%clk 0:02:54]}
8... Nc6 {[%clk 0:02:48.2]} 9. Bd6 {[%clk 0:02:52.4]} 9... Ne7 {[%clk
0:02:40.1]} 10. Bd3 {[%clk 0:02:46.6]} 10... O-O {[%clk 0:02:39.2]} 11. O-O
{[%clk 0:02:46.2]} 11... Re8 {[%clk 0:02:39.3]} 12. b4 {[%clk 0:02:42]} 12...
Ng6 {[%clk 0:02:37.2]} 13. Na4 {[%clk 0:02:37.1]} 13... b5 {[%clk 0:02:24.9]}
14. Nb6 {[%clk 0:02:34.2]} 14... Ra7 {[%clk 0:02:24.9]} 15. a4 {[%clk 0:02:31]}
15... Rb7 {[%clk 0:02:13.3]} 16. Nxc8 {[%clk 0:02:16.7]} 16... Qxc8 {[%clk
0:02:11.3]} 17. axb5 {[%clk 0:02:17.2]} 17... axb5 {[%clk 0:02:11.2]} 18. Ra5
{[%clk 0:02:17.4]} 18... Qc6 {[%clk 0:02:09.1]} 19. Qe2 {[%clk 0:02:16.5]} 19...
Ne4 {[%clk 0:01:37]} 20. Bxb5 {[%clk 0:02:14.5]} 20... Rxb5 {[%clk 0:01:35.3]}
21. Qxb5 {[%clk 0:02:13.8]} 21... Qc8 {[%clk 0:01:30.7]} 22. Rfa1 {[%clk
0:02:05.8]} 22... h5 {[%clk 0:01:23.4]} 23. Qxe8+ {[%clk 0:02:04.9]} 1-0

[Event "Early-Titled-Tuesday-Blitz-March-26-2024"]
[Site "Chess.com"]
[Date "2024.03.26"]
[Round "6"]
[White "Hamisandwich"]
[Black "Yaacovn"]
[Result "0-1"]
[WhiteElo "2709"]
[BlackElo "2903"]
[TimeControl "180+1"]
[EndTime "9:01:31 PDT"]
[Termination "Yaacovn won by resignation"]

1. e4 {[%clk 0:03:00.9]} 1... c6 {[%clk 0:02:59.9]} 2. c4 {[%clk 0:03:01]} 2...
d5 {[%clk 0:03:00.8]} 3. exd5 {[%clk 0:02:59.3]} 3... cxd5 {[%clk 0:03:01.7]} 4.
cxd5 {[%clk 0:03:00.1]} 4... Nf6 {[%clk 0:03:01.7]} 5. Nc3 {[%clk 0:02:59.3]}
5... Nxd5 {[%clk 0:03:01.8]} 6. Nf3 {[%clk 0:02:58.5]} 6... e6 {[%clk
0:03:02.2]} 7. d4 {[%clk 0:02:54.7]} 7... Be7 {[%clk 0:03:02.5]} 8. Bd3 {[%clk
0:02:53]} 8... Nf6 {[%clk 0:03:02.3]} 9. Bg5 {[%clk 0:02:45.9]} 9... Nc6 {[%clk
0:02:45.3]} 10. O-O {[%clk 0:02:44.5]} 10... O-O {[%clk 0:02:43.9]} 11. Rc1
{[%clk 0:02:38.3]} 11... b6 {[%clk 0:02:43.9]} 12. Bb1 {[%clk 0:02:04.2]} 12...
Bb7 {[%clk 0:02:43.2]} 13. Re1 {[%clk 0:02:02.9]} 13... Qd6 {[%clk 0:02:43]} 14.
Bh4 {[%clk 0:01:38]} 14... Rad8 {[%clk 0:02:40.9]} 15. Bg3 {[%clk 0:01:37.8]}
15... Qb4 {[%clk 0:02:40.8]} 16. Qc2 {[%clk 0:01:11.5]} 16... Nxd4 {[%clk
0:02:34.2]} 17. Nxd4 {[%clk 0:01:10]} 17... Qxd4 {[%clk 0:02:35.1]} 18. Nb5
{[%clk 0:00:30.8]} 18... Qd5 {[%clk 0:02:31.9]} 0-1

[Event "Early-Titled-Tuesday-Blitz-March-26-2024"]
[Site "Chess.com"]
[Date "2024.03.26"]
[Round "6"]
[White "Statham_01"]
[Black "gpsji27"]
[Result "1-0"]
[WhiteElo "2570"]
[BlackElo "2347"]
[TimeControl "180+1"]
[EndTime "9:01:37 PDT"]
[Termination "Statham_01 won by resignation"]

1. Na3 {[%clk 0:03:00.1]} 1... d5 {[%clk 0:02:59.3]} 2. d4 {[%clk 0:02:59.7]}
2... Nf6 {[%clk 0:02:59]} 3. c4 {[%clk 0:02:59.1]} 3... e6 {[%clk 0:02:59.1]} 4.
Nf3 {[%clk 0:02:59.2]} 4... Bb4+ {[%clk 0:02:56.5]} 5. Bd2 {[%clk 0:02:58.9]}
5... Bxa3 {[%clk 0:02:55.1]} 6. Qa4+ {[%clk 0:02:58.8]} 6... c6 {[%clk
0:02:54.2]} 7. Qxa3 {[%clk 0:02:59.1]} 7... dxc4 {[%clk 0:02:51.2]} 8. Rd1
{[%clk 0:02:55]} 8... Nbd7 {[%clk 0:02:47.4]} 9. e3 {[%clk 0:02:53.2]} 9... Nb6
{[%clk 0:02:44.8]} 10. Ne5 {[%clk 0:02:49.7]} 10... Nfd5 {[%clk 0:02:26.4]} 11.
Bxc4 {[%clk 0:02:44.7]} 11... Qe7 {[%clk 0:02:14.1]} 12. Bxd5 {[%clk 0:02:41.3]}
12... exd5 {[%clk 0:02:10.8]} 13. Bb4 {[%clk 0:02:40.4]} 13... Qf6 {[%clk
0:02:06.9]} 14. O-O {[%clk 0:02:37.7]} 14... Be6 {[%clk 0:01:54.1]} 15. f4
{[%clk 0:02:34.9]} 15... Nd7 {[%clk 0:01:35.1]} 16. f5 {[%clk 0:02:19]} 16...
Bxf5 {[%clk 0:01:16.1]} 17. Rxf5 {[%clk 0:02:16.6]} 17... Qxf5 {[%clk
0:01:13.2]} 18. Rf1 {[%clk 0:02:16.9]} 18... Qe4 {[%clk 0:00:57.9]} 19. Nxf7
{[%clk 0:02:05.8]} 1-0

[Event "Early-Titled-Tuesday-Blitz-March-26-2024"]
[Site "Chess.com"]
[Date "2024.03.26"]
[Round "6"]
[White "Kiborg95"]
[Black "AlmasRakhmatullaev"]
[Result "0-1"]
[WhiteElo "2780"]
[BlackElo "2913"]
[TimeControl "180+1"]
[EndTime "9:01:57 PDT"]
[Termination "AlmasRakhmatullaev won by resignation"]

1. e4 {[%clk 0:03:00.9]} 1... e5 {[%clk 0:02:59.2]} 2. Nf3 {[%clk 0:03:00.5]}
2... Nc6 {[%clk 0:02:58.3]} 3. Bc4 {[%clk 0:03:01.1]} 3... Nf6 {[%clk
0:02:58.3]} 4. d3 {[%clk 0:03:01.4]} 4... h6 {[%clk 0:02:53.5]} 5. a4 {[%clk
0:02:59.7]} 5... d6 {[%clk 0:02:52.9]} 6. a5 {[%clk 0:02:54.2]} 6... a6 {[%clk
0:02:53.3]} 7. Nc3 {[%clk 0:02:54.4]} 7... g6 {[%clk 0:02:53.7]} 8. h3 {[%clk
0:02:49.6]} 8... Bg7 {[%clk 0:02:53.7]} 9. Be3 {[%clk 0:02:50.3]} 9... Be6
{[%clk 0:02:51.5]} 10. Bxe6 {[%clk 0:02:49.5]} 10... fxe6 {[%clk 0:02:52.4]} 11.
Ne2 {[%clk 0:02:50.2]} 11... Qe7 {[%clk 0:02:49.1]} 12. Ng3 {[%clk 0:02:50.1]}
12... Qf7 {[%clk 0:02:43.8]} 13. c3 {[%clk 0:02:49]} 13... O-O-O {[%clk
0:02:43.1]} 14. b4 {[%clk 0:02:43.1]} 14... d5 {[%clk 0:02:43.4]} 15. Qb1 {[%clk
0:02:30.6]} 15... Qd7 {[%clk 0:02:02.8]} 16. b5 {[%clk 0:02:11.5]} 16... axb5
{[%clk 0:02:00.8]} 17. a6 {[%clk 0:02:12.1]} 17... bxa6 {[%clk 0:01:37.2]} 18.
Rxa6 {[%clk 0:02:10]} 18... dxe4 {[%clk 0:01:21.3]} 19. Qxb5 {[%clk 0:01:59.4]}
19... Nb8 {[%clk 0:01:17.5]} 20. Qa5 {[%clk 0:01:26.6]} 20... Qxd3 {[%clk
0:01:08.1]} 0-1

[Event "Early-Titled-Tuesday-Blitz-March-26-2024"]
[Site "Chess.com"]
[Date "2024.03.26"]
[Round "6"]
[White "deribas12345"]
[Black "Philippians46"]
[Result "0-1"]
[WhiteElo "2616"]
[BlackElo "2999"]
[TimeControl "180+1"]
[EndTime "9:01:59 PDT"]
[Termination "Philippians46 won by resignation"]

1. d4 {[%clk 0:02:56.9]} 1... Nf6 {[%clk 0:03:00.3]} 2. c4 {[%clk 0:02:55.6]}
2... g6 {[%clk 0:03:00.8]} 3. Nc3 {[%clk 0:02:55.6]} 3... d5 {[%clk 0:03:01.4]}
4. Bg5 {[%clk 0:02:55.4]} 4... Ne4 {[%clk 0:03:00.1]} 5. Bh4 {[%clk 0:02:55.7]}
5... g5 {[%clk 0:03:00.4]} 6. Bg3 {[%clk 0:02:48.9]} 6... Bg7 {[%clk 0:02:53.4]}
7. e3 {[%clk 0:02:41.6]} 7... h5 {[%clk 0:02:51.1]} 8. Nxe4 {[%clk 0:02:39.5]}
8... dxe4 {[%clk 0:02:50.6]} 9. h4 {[%clk 0:02:39.6]} 9... c5 {[%clk 0:02:47.9]}
10. Ne2 {[%clk 0:02:31]} 10... Nc6 {[%clk 0:02:47.4]} 11. hxg5 {[%clk
0:02:08.6]} 11... cxd4 {[%clk 0:02:44.5]} 12. Nxd4 {[%clk 0:02:07.2]} 12... Nxd4
{[%clk 0:02:43.4]} 13. exd4 {[%clk 0:02:07.4]} 13... Bxd4 {[%clk 0:02:44.1]} 14.
Be2 {[%clk 0:02:05.4]} 14... Be6 {[%clk 0:02:31.3]} 15. Qa4+ {[%clk 0:01:52.5]}
15... Bd7 {[%clk 0:02:28]} 16. Qc2 {[%clk 0:01:49.1]} 16... Qa5+ {[%clk
0:02:27.5]} 17. Kf1 {[%clk 0:01:49.2]} 17... Bc6 {[%clk 0:02:24.1]} 18. Rb1
{[%clk 0:01:17.9]} 18... Qxg5 {[%clk 0:02:17.9]} 19. b4 {[%clk 0:01:11.5]} 19...
h4 {[%clk 0:02:17.2]} 20. b5 {[%clk 0:01:08.1]} 20... hxg3 {[%clk 0:02:12.7]}
21. Rxh8+ {[%clk 0:01:06.3]} 21... Bxh8 {[%clk 0:02:13.6]} 22. bxc6 {[%clk
0:01:03.6]} 22... Qh4 {[%clk 0:02:12.1]} 23. Bd1 {[%clk 0:00:53.5]} 23... Qh1+
{[%clk 0:02:03.3]} 24. Ke2 {[%clk 0:00:53.5]} 24... Qxg2 {[%clk 0:02:04.2]} 25.
Ke3 {[%clk 0:00:51.8]} 25... gxf2 {[%clk 0:02:01.8]} 0-1

[Event "Early-Titled-Tuesday-Blitz-March-26-2024"]
[Site "Chess.com"]
[Date "2024.03.26"]
[Round "6"]
[White "LeoWin2012"]
[Black "GMKrikor"]
[Result "0-1"]
[WhiteElo "2291"]
[BlackElo "2875"]
[TimeControl "180+1"]
[EndTime "9:02:13 PDT"]
[Termination "GMKrikor won by resignation"]

1. b3 {[%clk 0:02:44.1]} 1... Nf6 {[%clk 0:02:56.2]} 2. Bb2 {[%clk 0:02:44.7]}
2... g6 {[%clk 0:02:56]} 3. e3 {[%clk 0:02:42.6]} 3... Bg7 {[%clk 0:02:56.1]} 4.
Nf3 {[%clk 0:02:41.2]} 4... O-O {[%clk 0:02:56.4]} 5. c4 {[%clk 0:02:41]} 5...
c5 {[%clk 0:02:55.8]} 6. d3 {[%clk 0:02:38.8]} 6... Nc6 {[%clk 0:02:54.9]} 7.
Nbd2 {[%clk 0:02:37.6]} 7... b6 {[%clk 0:02:48.9]} 8. g3 {[%clk 0:02:34.6]} 8...
d5 {[%clk 0:02:47.2]} 9. Bg2 {[%clk 0:02:33.8]} 9... Bb7 {[%clk 0:02:46.1]} 10.
O-O {[%clk 0:02:33.2]} 10... Rc8 {[%clk 0:02:45.8]} 11. Ne5 {[%clk 0:02:31]}
11... Qd6 {[%clk 0:02:41.6]} 12. Nxc6 {[%clk 0:02:29.9]} 12... Bxc6 {[%clk
0:02:42.5]} 13. cxd5 {[%clk 0:02:29.6]} 13... Nxd5 {[%clk 0:02:28.6]} 14. Bxg7
{[%clk 0:02:26.3]} 14... Kxg7 {[%clk 0:02:29.5]} 15. Nc4 {[%clk 0:02:26]} 15...
Qf6 {[%clk 0:02:26.8]} 16. Qd2 {[%clk 0:02:21.7]} 16... Rfd8 {[%clk 0:02:26.5]}
17. Rac1 {[%clk 0:02:15.4]} 17... Nb4 {[%clk 0:01:58]} 18. d4 {[%clk 0:02:14.3]}
18... Bxg2 {[%clk 0:01:54.9]} 19. Kxg2 {[%clk 0:02:13.8]} 19... Nc6 {[%clk
0:01:33.9]} 20. d5 {[%clk 0:02:09]} 20... e6 {[%clk 0:01:25.4]} 21. d6 {[%clk
0:02:07.8]} 21... Ne5 {[%clk 0:01:09.4]} 22. Rfd1 {[%clk 0:01:55.4]} 22... Nxc4
{[%clk 0:00:58.5]} 23. Rxc4 {[%clk 0:01:52.8]} 23... Rc6 {[%clk 0:00:59.2]} 24.
Rc3 {[%clk 0:01:45.6]} 24... Rcxd6 {[%clk 0:00:52.3]} 25. Qxd6 {[%clk
0:01:35.5]} 25... Rxd6 {[%clk 0:00:52]} 26. Rxd6 {[%clk 0:01:36.4]} 26... Qxc3
{[%clk 0:00:51.8]} 0-1